[Event "Titled Tuesday Blitz August 10 2021"]
[White "Salinas Herrera, Pablo"]
[Black "Yaran, Siar"]
[WhiteFideId "3407128"]
[BlackFideId "6323006"]
[WhiteElo "2541"]
[BlackElo "1977"]
[Result "1-0"]
[Round "02"]
[TimeControl "180+1"]
[Date "2021.08.10"]
[WhiteClock "0:01:51"]
[BlackClock "0:00:14"]

1. d4 {[%clk 0:03:00]}  Nf6 {[%clk 0:02:59]} 2. c4 {[%clk 0:02:59]}  e6 {[%clk 0:02:59]} 3. Nc3 {[%clk 0:02:56]}  d5 {[%clk 0:02:59]} 4. cxd5 {[%clk 0:02:56]}  exd5 {[%clk 0:03:00]} 5. Bg5 {[%clk 0:02:56]}  Be7 {[%clk 0:03:00]} 6. e3 {[%clk 0:02:56]}  c6 {[%clk 0:03:00]} 7. Bd3 {[%clk 0:02:56]}  Nbd7 {[%clk 0:02:57]} 8. Nge2 {[%clk 0:02:56]}  Nh5 {[%clk 0:02:57]} 9. Bxe7 {[%clk 0:02:56]}  Qxe7 {[%clk 0:02:57]} 10. g4 {[%clk 0:02:56]}  Nhf6 {[%clk 0:02:56]} 11. Ng3 {[%clk 0:02:56]}  g6 {[%clk 0:02:55]} 12. g5 {[%clk 0:02:44]}  Ng8 {[%clk 0:02:53]} 13. h4 {[%clk 0:02:44]}  h6 {[%clk 0:02:52]} 14. gxh6 {[%clk 0:02:41]}  Rxh6 {[%clk 0:02:49]} 15. h5 {[%clk 0:02:42]}  Qg5 {[%clk 0:02:07]} 16. Qf3 {[%clk 0:02:37]}  Ndf6 {[%clk 0:02:00]} 17. hxg6 {[%clk 0:02:36]}  fxg6 {[%clk 0:01:52]} 18. O-O-O {[%clk 0:02:33]}  Bg4 {[%clk 0:01:48]} 19. Qg2 {[%clk 0:02:32]}  Bxd1 {[%clk 0:01:45]} 20. Rxd1 {[%clk 0:02:33]}  O-O-O {[%clk 0:01:40]} 21. Rg1 {[%clk 0:02:32]}  Qg4 {[%clk 0:01:28]} 22. Qf1 {[%clk 0:02:31]}  Qd7 {[%clk 0:01:20]} 23. Nge2 {[%clk 0:02:29]}  Ne7 {[%clk 0:01:19]} 24. Nf4 {[%clk 0:02:29]}  Rg8 {[%clk 0:01:19]} 25. a3 {[%clk 0:02:27]}  g5 {[%clk 0:01:15]} 26. Nfe2 {[%clk 0:02:27]}  Kb8 {[%clk 0:01:14]} 27. Ng3 {[%clk 0:02:27]}  Rf8 {[%clk 0:01:11]} 28. Qe2 {[%clk 0:02:27]}  Rh2 {[%clk 0:01:00]} 29. Qe1 {[%clk 0:02:19]}  Ng4 {[%clk 0:00:56]} 30. f3 {[%clk 0:02:02]}  Rxf3 {[%clk 0:00:53]} 31. Nf1 {[%clk 0:02:02]}  Rhh3 {[%clk 0:00:19]} 32. Be2 {[%clk 0:01:59]}  Nh2 {[%clk 0:00:19]} 33. Nxh2 {[%clk 0:01:56]}  Rxe3 {[%clk 0:00:17]} 34. Ng4 {[%clk 0:01:54]}  Re6 {[%clk 0:00:15]} 35. Ne5 {[%clk 0:01:53]}  Qe8 {[%clk 0:00:13]} 36. Bg4 {[%clk 0:01:53]}  Ng6 {[%clk 0:00:14]} 37. Bxh3 {[%clk 0:01:51]} 1-0


[Site "https://www.chess.com"]

[Event "Titled Tuesday Blitz August 10 2021"]
[White "Solovchuk, Oleksiy"]
[Black "Khusnutdinov, Rustam"]
[WhiteFideId "14115220"]
[BlackFideId "13701703"]
[WhiteElo "2376"]
[BlackElo "2571"]
[Result "0-1"]
[Round "02"]
[TimeControl "180+1"]
[Date "2021.08.10"]
[WhiteClock "0:00:08"]
[BlackClock "0:00:39"]

1. d4 {[%clk 0:02:59]}  d6 {[%clk 0:02:59]} 2. e4 {[%clk 0:02:58]}  Nf6 {[%clk 0:02:57]} 3. Bd3 {[%clk 0:02:57]}  c5 {[%clk 0:02:54]} 4. dxc5 {[%clk 0:02:56]}  dxc5 {[%clk 0:02:55]} 5. Nc3 {[%clk 0:02:54]}  Nc6 {[%clk 0:02:51]} 6. Be3 {[%clk 0:02:52]}  e6 {[%clk 0:02:28]} 7. f4 {[%clk 0:02:48]}  Be7 {[%clk 0:02:22]} 8. Nf3 {[%clk 0:02:44]}  Ng4 {[%clk 0:02:21]} 9. Bg1 {[%clk 0:02:42]}  f5 {[%clk 0:02:05]} 10. e5 {[%clk 0:02:35]}  O-O {[%clk 0:02:00]} 11. Bc4 {[%clk 0:02:28]}  Qb6 {[%clk 0:01:55]} 12. a3 {[%clk 0:02:15]}  Rd8 {[%clk 0:01:54]} 13. Qc1 {[%clk 0:02:14]}  Bd7 {[%clk 0:01:47]} 14. h3 {[%clk 0:02:12]}  Nh6 {[%clk 0:01:46]} 15. Be3 {[%clk 0:02:09]}  Nd4 {[%clk 0:01:33]} 16. O-O {[%clk 0:02:08]}  Bc6 {[%clk 0:01:27]} 17. Ng5 {[%clk 0:01:45]}  Bxg5 {[%clk 0:01:21]} 18. fxg5 {[%clk 0:01:45]}  Nf7 {[%clk 0:01:22]} 19. Bf4 {[%clk 0:01:41]}  Bd5 {[%clk 0:01:12]} 20. Bxd5 {[%clk 0:01:09]}  exd5 {[%clk 0:01:13]} 21. Kh1 {[%clk 0:01:06]}  Ne6 {[%clk 0:01:11]} 22. h4 {[%clk 0:01:01]}  d4 {[%clk 0:01:10]} 23. Ne2 {[%clk 0:00:59]}  g6 {[%clk 0:01:07]} 24. Rf3 {[%clk 0:00:52]}  c4 {[%clk 0:01:06]} 25. b3 {[%clk 0:00:46]}  Rac8 {[%clk 0:01:05]} 26. bxc4 {[%clk 0:00:42]}  Rxc4 {[%clk 0:01:06]} 27. Qd2 {[%clk 0:00:41]}  Qb2 {[%clk 0:01:03]} 28. Rc1 {[%clk 0:00:35]}  Rdc8 {[%clk 0:01:03]} 29. Rb3 {[%clk 0:00:28]}  Qa2 {[%clk 0:00:59]} 30. Rxb7 {[%clk 0:00:12]}  Rxc2 {[%clk 0:00:59]} 31. Rxc2 {[%clk 0:00:12]}  Rxc2 {[%clk 0:01:00]} 32. Rb8+ {[%clk 0:00:12]}  Kg7 {[%clk 0:00:59]} 33. Qb4 {[%clk 0:00:11]}  Rxe2 {[%clk 0:00:43]} 34. Qe7 {[%clk 0:00:11]}  Qa1+ {[%clk 0:00:44]} 35. Kh2 {[%clk 0:00:10]}  Rxg2+ {[%clk 0:00:44]} 36. Kxg2 {[%clk 0:00:11]}  Nxf4+ {[%clk 0:00:45]} 37. Kg3 {[%clk 0:00:11]}  Qg1+ {[%clk 0:00:39]} 38. Kf3 {[%clk 0:00:08]}  Qe3# {[%clk 0:00:39]} 0-1


[Site "https://www.chess.com"]

[Event "Titled Tuesday Blitz August 10 2021"]
[White "Stachowiak, Kamil"]
[Black "Le, Tuan Minh"]
[WhiteFideId "1119966"]
[BlackFideId "12401153"]
[WhiteElo "2313"]
[BlackElo "2450"]
[Result "0-1"]
[Round "02"]
[TimeControl "180+1"]
[Date "2021.08.10"]
[WhiteClock "0:00:02"]
[BlackClock "0:00:16"]

1. Nf3 {[%clk 0:03:00]}  d5 {[%clk 0:02:34]} 2. g3 {[%clk 0:02:59]}  Nd7 {[%clk 0:02:30]} 3. c4 {[%clk 0:02:54]}  dxc4 {[%clk 0:02:29]} 4. Bg2 {[%clk 0:02:54]}  Nb6 {[%clk 0:02:25]} 5. O-O {[%clk 0:02:52]}  c6 {[%clk 0:02:25]} 6. a4 {[%clk 0:02:49]}  a5 {[%clk 0:02:24]} 7. Qc2 {[%clk 0:02:47]}  Nf6 {[%clk 0:02:19]} 8. Na3 {[%clk 0:02:45]}  Qd5 {[%clk 0:02:19]} 9. Nh4 {[%clk 0:02:25]}  Qd4 {[%clk 0:01:55]} 10. e3 {[%clk 0:01:41]}  Qd3 {[%clk 0:01:54]} 11. Qxd3 {[%clk 0:01:37]}  cxd3 {[%clk 0:01:55]} 12. Re1 {[%clk 0:01:36]}  e5 {[%clk 0:01:53]} 13. b3 {[%clk 0:01:08]}  Bb4 {[%clk 0:01:36]} 14. Bb2 {[%clk 0:00:59]}  Bg4 {[%clk 0:01:36]} 15. h3 {[%clk 0:00:53]}  Be2 {[%clk 0:01:33]} 16. Nb1 {[%clk 0:00:39]}  Nbd7 {[%clk 0:01:28]} 17. Nc3 {[%clk 0:00:37]}  Bxc3 {[%clk 0:01:13]} 18. Bxc3 {[%clk 0:00:37]}  O-O {[%clk 0:01:13]} 19. Nf5 {[%clk 0:00:27]}  Nc5 {[%clk 0:00:53]} 20. Rab1 {[%clk 0:00:19]}  Rfe8 {[%clk 0:00:49]} 21. Nd6 {[%clk 0:00:18]}  Re6 {[%clk 0:00:49]} 22. Nc4 {[%clk 0:00:17]}  Nfe4 {[%clk 0:00:45]} 23. Ba1 {[%clk 0:00:11]}  b5 {[%clk 0:00:44]} 24. axb5 {[%clk 0:00:10]}  cxb5 {[%clk 0:00:45]} 25. Nxe5 {[%clk 0:00:10]}  Rae8 {[%clk 0:00:42]} 26. Nf3 {[%clk 0:00:07]}  Bxf3 {[%clk 0:00:42]} 27. Bxf3 {[%clk 0:00:07]}  Nxd2 {[%clk 0:00:43]} 28. Bd5 {[%clk 0:00:07]}  Rd6 {[%clk 0:00:42]} 29. Bg2 {[%clk 0:00:07]}  Ndxb3 {[%clk 0:00:42]} 30. Bc3 {[%clk 0:00:05]}  b4 {[%clk 0:00:42]} 31. Bd4 {[%clk 0:00:04]}  Nxd4 {[%clk 0:00:41]} 32. exd4 {[%clk 0:00:05]}  Rxe1+ {[%clk 0:00:42]} 33. Rxe1 {[%clk 0:00:06]}  Ne6 {[%clk 0:00:38]} 34. d5 {[%clk 0:00:06]}  Nc7 {[%clk 0:00:21]} 35. Re7 {[%clk 0:00:06]}  d2 {[%clk 0:00:20]} 36. Bf3 {[%clk 0:00:07]}  Rxd5 {[%clk 0:00:20]} 37. Bd1 {[%clk 0:00:02]}  Rc5 {[%clk 0:00:19]} 38. Kf1 {[%clk 0:00:02]}  Kf8 {[%clk 0:00:16]} 39. Rd7 {[%clk 0:00:02]}  Nd5 {[%clk 0:00:16]} 0-1


[Site "https://www.chess.com"]

[Event "Titled Tuesday Blitz August 10 2021"]
[White "Stoyanov, Tsvetan"]
[Black "Maghsoodloo, Parham"]
[WhiteFideId "2917173"]
[BlackFideId "12539929"]
[WhiteElo "2191"]
[BlackElo "2601"]
[Result "0-1"]
[Round "02"]
[TimeControl "180+1"]
[Date "2021.08.10"]
[WhiteClock "0:00:04"]
[BlackClock "0:00:09"]

1. e4 {[%clk 0:03:00]}  c5 {[%clk 0:02:52]} 2. Nf3 {[%clk 0:03:01]}  d6 {[%clk 0:02:51]} 3. d4 {[%clk 0:03:01]}  cxd4 {[%clk 0:02:52]} 4. Nxd4 {[%clk 0:03:02]}  Nf6 {[%clk 0:02:53]} 5. Nc3 {[%clk 0:03:03]}  a6 {[%clk 0:02:53]} 6. Bc4 {[%clk 0:03:02]}  e6 {[%clk 0:02:43]} 7. Bb3 {[%clk 0:03:02]}  Nbd7 {[%clk 0:02:37]} 8. O-O {[%clk 0:02:56]}  Nc5 {[%clk 0:02:37]} 9. Qe2 {[%clk 0:02:55]}  b5 {[%clk 0:02:30]} 10. f4 {[%clk 0:02:34]}  b4 {[%clk 0:02:29]} 11. Na4 {[%clk 0:02:33]}  Ncxe4 {[%clk 0:02:23]} 12. f5 {[%clk 0:02:25]}  e5 {[%clk 0:02:21]} 13. Nc6 {[%clk 0:02:13]}  Qc7 {[%clk 0:02:21]} 14. Nxb4 {[%clk 0:02:12]}  Bb7 {[%clk 0:02:21]} 15. Be3 {[%clk 0:02:02]}  d5 {[%clk 0:02:16]} 16. Bb6 {[%clk 0:01:53]}  Bc5+ {[%clk 0:01:54]} 17. Bxc5 {[%clk 0:01:50]}  Nxc5 {[%clk 0:01:55]} 18. Kh1 {[%clk 0:01:31]}  Nxb3 {[%clk 0:01:55]} 19. axb3 {[%clk 0:01:31]}  O-O {[%clk 0:01:55]} 20. Nd3 {[%clk 0:01:27]}  Rfe8 {[%clk 0:01:48]} 21. c3 {[%clk 0:01:14]}  Bc6 {[%clk 0:01:37]} 22. Qe3 {[%clk 0:01:04]}  Bb5 {[%clk 0:01:35]} 23. Rfe1 {[%clk 0:00:55]}  e4 {[%clk 0:01:13]} 24. Nf2 {[%clk 0:00:54]}  Qe5 {[%clk 0:01:11]} 25. Nb6 {[%clk 0:00:44]}  Rad8 {[%clk 0:01:10]} 26. c4 {[%clk 0:00:43]}  d4 {[%clk 0:01:11]} 27. Qg3 {[%clk 0:00:41]}  Qxg3 {[%clk 0:00:40]} 28. hxg3 {[%clk 0:00:42]}  Bc6 {[%clk 0:00:40]} 29. Rxa6 {[%clk 0:00:39]}  e3 {[%clk 0:00:39]} 30. Nd3 {[%clk 0:00:34]}  Be4 {[%clk 0:00:39]} 31. Nf4 {[%clk 0:00:14]}  d3 {[%clk 0:00:38]} 32. Nxd3 {[%clk 0:00:14]}  Bxd3 {[%clk 0:00:36]} 33. Na4 {[%clk 0:00:11]}  Ne4 {[%clk 0:00:24]} 34. Nc3 {[%clk 0:00:08]}  Nxc3 {[%clk 0:00:15]} 35. bxc3 {[%clk 0:00:09]}  e2 {[%clk 0:00:15]} 36. Ra2 {[%clk 0:00:10]}  Bxc4 {[%clk 0:00:07]} 37. bxc4 {[%clk 0:00:02]}  Rd1 {[%clk 0:00:07]} 38. Ra1 {[%clk 0:00:03]}  Rxa1 {[%clk 0:00:07]} 39. Rxa1 {[%clk 0:00:03]}  e1=Q+ {[%clk 0:00:08]} 40. Rxe1 {[%clk 0:00:03]}  Rxe1+ {[%clk 0:00:08]} 41. Kh2 {[%clk 0:00:04]}  Re3 {[%clk 0:00:09]} 0-1


[Site "https://www.chess.com"]

[Event "Titled Tuesday Blitz August 10 2021"]
[White "Trent, Lawrence"]
[Black "Grischuk, Alexander"]
[WhiteFideId "408638"]
[BlackFideId "4126025"]
[WhiteElo "2474"]
[BlackElo "2777"]
[Result "0-1"]
[Round "02"]
[TimeControl "180+1"]
[Date "2021.08.10"]
[WhiteClock "0:00:01"]
[BlackClock "0:00:08"]

1. e4 {[%clk 0:03:00]}  e5 {[%clk 0:02:57]} 2. Nf3 {[%clk 0:03:00]}  Nc6 {[%clk 0:02:58]} 3. Bb5 {[%clk 0:03:00]}  a6 {[%clk 0:02:57]} 4. Ba4 {[%clk 0:03:00]}  Nf6 {[%clk 0:02:57]} 5. O-O {[%clk 0:03:00]}  Be7 {[%clk 0:02:56]} 6. Re1 {[%clk 0:03:00]}  b5 {[%clk 0:02:55]} 7. Bb3 {[%clk 0:03:01]}  d6 {[%clk 0:02:55]} 8. c3 {[%clk 0:03:01]}  O-O {[%clk 0:02:55]} 9. d4 {[%clk 0:03:01]}  Bg4 {[%clk 0:02:54]} 10. Be3 {[%clk 0:03:01]}  exd4 {[%clk 0:02:43]} 11. cxd4 {[%clk 0:03:00]}  Na5 {[%clk 0:02:43]} 12. Bc2 {[%clk 0:03:01]}  Nc4 {[%clk 0:02:43]} 13. Bc1 {[%clk 0:03:01]}  c5 {[%clk 0:02:43]} 14. b3 {[%clk 0:03:01]}  Nb6 {[%clk 0:02:44]} 15. Nbd2 {[%clk 0:03:01]}  cxd4 {[%clk 0:02:42]} 16. Bb2 {[%clk 0:03:01]}  Rc8 {[%clk 0:02:33]} 17. h3 {[%clk 0:02:57]}  Bh5 {[%clk 0:02:33]} 18. g4 {[%clk 0:02:52]}  Bg6 {[%clk 0:02:33]} 19. Nxd4 {[%clk 0:02:52]}  d5 {[%clk 0:02:27]} 20. e5 {[%clk 0:02:43]}  Bxc2 {[%clk 0:02:25]} 21. Nxc2 {[%clk 0:02:44]}  Nfd7 {[%clk 0:02:20]} 22. Nd4 {[%clk 0:02:38]}  Nc5 {[%clk 0:02:19]} 23. Qf3 {[%clk 0:02:30]}  Bg5 {[%clk 0:02:16]} 24. Nf1 {[%clk 0:02:30]}  Ne6 {[%clk 0:01:57]} 25. Nf5 {[%clk 0:02:08]}  Rc2 {[%clk 0:01:51]} 26. Ba3 {[%clk 0:02:08]}  Re8 {[%clk 0:01:44]} 27. N1e3 {[%clk 0:01:29]}  Rc3 {[%clk 0:01:27]} 28. Rac1 {[%clk 0:01:10]}  Rxc1 {[%clk 0:01:25]} 29. Rxc1 {[%clk 0:01:08]}  d4 {[%clk 0:01:21]} 30. Nd6 {[%clk 0:01:07]}  Rf8 {[%clk 0:01:00]} 31. Nb7 {[%clk 0:00:38]}  Qa8 {[%clk 0:01:00]} 32. Bxf8 {[%clk 0:00:36]}  dxe3 {[%clk 0:01:00]} 33. Kg2 {[%clk 0:00:11]}  exf2 {[%clk 0:00:54]} 34. Rf1 {[%clk 0:00:05]}  Qxf8 {[%clk 0:00:50]} 35. Rxf2 {[%clk 0:00:05]}  Nf4+ {[%clk 0:00:43]} 36. Kh2 {[%clk 0:00:05]}  Nbd5 {[%clk 0:00:42]} 37. Nd6 {[%clk 0:00:05]}  h6 {[%clk 0:00:39]} 38. Rc2 {[%clk 0:00:05]}  Qe7 {[%clk 0:00:30]} 39. Qe4 {[%clk 0:00:05]}  g6 {[%clk 0:00:27]} 40. Rc8+ {[%clk 0:00:02]}  Kg7 {[%clk 0:00:25]} 41. Rc6 {[%clk 0:00:03]}  Qd7 {[%clk 0:00:15]} 42. Rc2 {[%clk 0:00:03]}  Nc7 {[%clk 0:00:12]} 43. a4 {[%clk 0:00:01]}  Nce6 {[%clk 0:00:12]} 44. axb5 {[%clk 0:00:01]}  axb5 {[%clk 0:00:13]} 45. Qc6 {[%clk 0:00:02]}  Qa7 {[%clk 0:00:12]} 46. Ne8+ {[%clk 0:00:01]}  Kh7 {[%clk 0:00:11]} 47. Nf6+ {[%clk 0:00:02]}  Bxf6 {[%clk 0:00:11]} 48. exf6 {[%clk 0:00:01]}  Nd3 {[%clk 0:00:08]} 0-1


[Site "https://www.chess.com"]

[Event "Titled Tuesday Blitz August 10 2021"]
[White "Yakubboev, Nodirbek"]
[Black "Turayev, Shahruh"]
[WhiteFideId "14203987"]
[BlackFideId "14003856"]
[WhiteElo "2519"]
[BlackElo "2606"]
[Result "1-0"]
[Round "02"]
[TimeControl "180+1"]
[Date "2021.08.10"]
[WhiteClock "0:00:54"]
[BlackClock "0:01:02"]

1. b3 {[%clk 0:02:59]}  e5 {[%clk 0:02:56]} 2. Bb2 {[%clk 0:02:59]}  Nc6 {[%clk 0:02:57]} 3. e3 {[%clk 0:03:00]}  Nf6 {[%clk 0:02:56]} 4. Bb5 {[%clk 0:02:57]}  Bd6 {[%clk 0:02:56]} 5. Na3 {[%clk 0:02:55]}  a6 {[%clk 0:02:56]} 6. Be2 {[%clk 0:02:55]}  b5 {[%clk 0:02:54]} 7. c4 {[%clk 0:02:54]}  b4 {[%clk 0:02:53]} 8. Nc2 {[%clk 0:02:53]}  O-O {[%clk 0:02:51]} 9. Nf3 {[%clk 0:02:50]}  e4 {[%clk 0:02:46]} 10. Nfd4 {[%clk 0:02:50]}  Nxd4 {[%clk 0:02:44]} 11. Nxd4 {[%clk 0:02:51]}  Be5 {[%clk 0:02:41]} 12. f4 {[%clk 0:02:37]}  exf3 {[%clk 0:02:24]} 13. Bxf3 {[%clk 0:02:37]}  Rb8 {[%clk 0:02:21]} 14. O-O {[%clk 0:02:20]}  Re8 {[%clk 0:01:56]} 15. Qc2 {[%clk 0:02:16]}  c5 {[%clk 0:01:53]} 16. Ne2 {[%clk 0:02:11]}  d6 {[%clk 0:01:49]} 17. d4 {[%clk 0:02:07]}  Bxh2+ {[%clk 0:01:35]} 18. Kxh2 {[%clk 0:02:05]}  Rxe3 {[%clk 0:01:36]} 19. dxc5 {[%clk 0:01:40]}  Bb7 {[%clk 0:01:29]} 20. c6 {[%clk 0:01:36]}  Bxc6 {[%clk 0:01:29]} 21. Bxf6 {[%clk 0:01:21]}  Qxf6 {[%clk 0:01:27]} 22. Bxc6 {[%clk 0:01:20]}  Qe5+ {[%clk 0:01:23]} 23. Nf4 {[%clk 0:01:18]}  g5 {[%clk 0:01:22]} 24. Qf2 {[%clk 0:01:07]}  Kh8 {[%clk 0:01:09]} 25. Kg1 {[%clk 0:01:00]}  gxf4 {[%clk 0:01:05]} 26. Qxf4 {[%clk 0:00:58]}  Qc5 {[%clk 0:01:02]} 27. Qf6+ {[%clk 0:00:54]} 1-0


[Site "https://www.chess.com"]

[Event "Titled Tuesday Blitz August 10 2021"]
[White "Bologan, Victor"]
[Black "Bluebaum, Matthias"]
[WhiteFideId "13900048"]
[BlackFideId "24651516"]
[WhiteElo "2511"]
[BlackElo "2685"]
[Result "0-1"]
[Round "03"]
[TimeControl "180+1"]
[Date "2021.08.10"]
[WhiteClock "0:02:38"]
[BlackClock "0:02:21"]

1. e4 {[%clk 0:03:00]}  e6 {[%clk 0:02:59]} 2. d3 {[%clk 0:02:59]}  d5 {[%clk 0:03:00]} 3. Ke2 {[%clk 0:02:59]}  Nc6 {[%clk 0:02:58]} 4. Ke1 {[%clk 0:02:57]}  Bc5 {[%clk 0:02:54]} 5. Nd2 {[%clk 0:02:54]}  Nf6 {[%clk 0:02:53]} 6. c3 {[%clk 0:02:53]}  e5 {[%clk 0:02:42]} 7. h3 {[%clk 0:02:52]}  dxe4 {[%clk 0:02:21]} 8. dxe4 {[%clk 0:02:51]}  Bxf2+ {[%clk 0:02:22]} 9. Kxf2 {[%clk 0:02:40]}  Nxe4+ {[%clk 0:02:22]} 10. Ke1 {[%clk 0:02:38]}  Qh4+ {[%clk 0:02:21]} 11. Ke2 {[%clk 0:02:38]} 0-1


[Site "https://www.chess.com"]

[Event "Titled Tuesday Blitz August 10 2021"]
[White "Bortnyk, Olexandr"]
[Black "Quispe Arteaga, Gabriel"]
[WhiteFideId "14120828"]
[BlackFideId "32059809"]
[WhiteElo "2723"]
[BlackElo "2172"]
[Result "1-0"]
[Round "03"]
[TimeControl "180+1"]
[Date "2021.08.10"]
[WhiteClock "0:00:21"]
[BlackClock "0:00:04"]

1. e4 {[%clk 0:03:00]}  c5 {[%clk 0:02:53]} 2. c3 {[%clk 0:03:00]}  d5 {[%clk 0:02:49]} 3. exd5 {[%clk 0:03:01]}  Qxd5 {[%clk 0:02:50]} 4. d4 {[%clk 0:03:02]}  Nf6 {[%clk 0:02:50]} 5. Be3 {[%clk 0:03:01]}  cxd4 {[%clk 0:02:45]} 6. cxd4 {[%clk 0:03:02]}  Bg4 {[%clk 0:02:44]} 7. Nc3 {[%clk 0:02:56]}  Qa5 {[%clk 0:02:36]} 8. Qb3 {[%clk 0:02:47]}  Nbd7 {[%clk 0:02:34]} 9. Nf3 {[%clk 0:02:37]}  Bxf3 {[%clk 0:02:31]} 10. gxf3 {[%clk 0:02:37]}  e6 {[%clk 0:02:30]} 11. Qxb7 {[%clk 0:02:28]}  Rb8 {[%clk 0:02:26]} 12. Qa6 {[%clk 0:02:26]}  Qxa6 {[%clk 0:02:20]} 13. Bxa6 {[%clk 0:02:27]}  Rxb2 {[%clk 0:02:20]} 14. O-O {[%clk 0:02:27]}  Nb6 {[%clk 0:01:20]} 15. Rab1 {[%clk 0:02:18]}  Rxb1 {[%clk 0:01:00]} 16. Rxb1 {[%clk 0:02:19]}  Be7 {[%clk 0:00:59]} 17. Nb5 {[%clk 0:02:15]}  O-O {[%clk 0:00:57]} 18. Nxa7 {[%clk 0:02:15]}  Nbd5 {[%clk 0:00:58]} 19. Nc6 {[%clk 0:02:13]}  Bd6 {[%clk 0:00:57]} 20. Bb7 {[%clk 0:02:09]}  Nc3 {[%clk 0:00:32]} 21. Rb2 {[%clk 0:02:09]}  Nfd5 {[%clk 0:00:29]} 22. Bd2 {[%clk 0:02:08]}  Na4 {[%clk 0:00:24]} 23. Rb5 {[%clk 0:02:03]}  Bc7 {[%clk 0:00:20]} 24. a3 {[%clk 0:01:54]}  g6 {[%clk 0:00:19]} 25. Kf1 {[%clk 0:01:11]}  Kg7 {[%clk 0:00:19]} 26. h4 {[%clk 0:01:11]}  h5 {[%clk 0:00:18]} 27. Bb4 {[%clk 0:01:09]}  Re8 {[%clk 0:00:17]} 28. Ba5 {[%clk 0:01:07]}  Bxa5 {[%clk 0:00:16]} 29. Rxa5 {[%clk 0:01:08]}  Nac3 {[%clk 0:00:16]} 30. Rc5 {[%clk 0:00:56]}  g5 {[%clk 0:00:15]} 31. hxg5 {[%clk 0:00:56]}  h4 {[%clk 0:00:16]} 32. Nb4 {[%clk 0:00:51]}  Nxb4 {[%clk 0:00:08]} 33. axb4 {[%clk 0:00:51]}  Na4 {[%clk 0:00:09]} 34. Bc6 {[%clk 0:00:24]}  Nxc5 {[%clk 0:00:08]} 35. Bxe8 {[%clk 0:00:24]}  Na6 {[%clk 0:00:03]} 36. b5 {[%clk 0:00:23]}  Nb8 {[%clk 0:00:04]} 37. Kg2 {[%clk 0:00:21]}  Kg6 {[%clk 0:00:04]} 38. f4 {[%clk 0:00:21]} 1-0


[Site "https://www.chess.com"]

[Event "Titled Tuesday Blitz August 10 2021"]
[White "Chirila, Ioan-Cristian"]
[Black "Pichot, Alan"]
[WhiteFideId "1211668"]
[BlackFideId "110973"]
[WhiteElo "2445"]
[BlackElo "2622"]
[Result "0-1"]
[Round "03"]
[TimeControl "180+1"]
[Date "2021.08.10"]
[WhiteClock "0:00:08"]
[BlackClock "0:00:08"]

1. d4 {[%clk 0:03:00]}  Nf6 {[%clk 0:02:59]} 2. c4 {[%clk 0:02:59]}  g6 {[%clk 0:02:54]} 3. Nc3 {[%clk 0:02:59]}  Bg7 {[%clk 0:02:55]} 4. e4 {[%clk 0:02:59]}  d6 {[%clk 0:02:55]} 5. Be2 {[%clk 0:03:00]}  O-O {[%clk 0:02:55]} 6. Bg5 {[%clk 0:03:00]}  c5 {[%clk 0:02:54]} 7. d5 {[%clk 0:03:00]}  Na6 {[%clk 0:02:54]} 8. f4 {[%clk 0:02:54]}  Nc7 {[%clk 0:02:48]} 9. Nf3 {[%clk 0:02:54]}  Bg4 {[%clk 0:02:47]} 10. O-O {[%clk 0:02:50]}  Bxf3 {[%clk 0:02:46]} 11. Bxf3 {[%clk 0:02:50]}  Nd7 {[%clk 0:02:46]} 12. Qc2 {[%clk 0:02:40]}  Re8 {[%clk 0:02:37]} 13. e5 {[%clk 0:02:21]}  dxe5 {[%clk 0:02:11]} 14. d6 {[%clk 0:02:21]}  Ne6 {[%clk 0:02:11]} 15. Bxe7 {[%clk 0:02:17]}  Rxe7 {[%clk 0:01:50]} 16. dxe7 {[%clk 0:02:18]}  Qxe7 {[%clk 0:01:50]} 17. fxe5 {[%clk 0:01:50]}  Nd4 {[%clk 0:01:40]} 18. Qe4 {[%clk 0:01:40]}  Nxe5 {[%clk 0:01:38]} 19. Kh1 {[%clk 0:01:21]}  Re8 {[%clk 0:01:25]} 20. Qxb7 {[%clk 0:01:13]}  Ndxf3 {[%clk 0:01:00]} 21. Qxe7 {[%clk 0:01:12]}  Rxe7 {[%clk 0:01:00]} 22. gxf3 {[%clk 0:01:12]}  Nxc4 {[%clk 0:01:01]} 23. Rfe1 {[%clk 0:01:05]}  Kf8 {[%clk 0:00:40]} 24. Rxe7 {[%clk 0:00:57]}  Kxe7 {[%clk 0:00:41]} 25. b3 {[%clk 0:00:52]}  Nd2 {[%clk 0:00:21]} 26. Re1+ {[%clk 0:00:22]}  Kd7 {[%clk 0:00:18]} 27. Ne4 {[%clk 0:00:20]}  Nxf3 {[%clk 0:00:17]} 28. Nxc5+ {[%clk 0:00:19]}  Kc6 {[%clk 0:00:18]} 29. Re7 {[%clk 0:00:14]}  Ne5 {[%clk 0:00:12]} 30. Ne4 {[%clk 0:00:10]}  Kd5 {[%clk 0:00:13]} 31. Ng5 {[%clk 0:00:10]}  Bf6 {[%clk 0:00:11]} 32. Rxa7 {[%clk 0:00:03]}  Bxg5 {[%clk 0:00:11]} 33. a4 {[%clk 0:00:03]}  Be3 {[%clk 0:00:10]} 34. Rb7 {[%clk 0:00:03]}  f5 {[%clk 0:00:10]} 35. a5 {[%clk 0:00:03]}  f4 {[%clk 0:00:03]} 36. Kg2 {[%clk 0:00:04]}  f3+ {[%clk 0:00:03]} 37. Kf1 {[%clk 0:00:04]}  Ng4 {[%clk 0:00:01]} 38. Rf7 {[%clk 0:00:03]}  Nxh2+ {[%clk 0:00:01]} 39. Ke1 {[%clk 0:00:03]}  f2+ {[%clk 0:00:01]} 40. Rxf2 {[%clk 0:00:01]}  Bxf2+ {[%clk 0:00:02]} 41. Kxf2 {[%clk 0:00:02]}  Kc5 {[%clk 0:00:03]} 42. Kg3 {[%clk 0:00:02]}  Nf1+ {[%clk 0:00:03]} 43. Kf4 {[%clk 0:00:02]}  Nd2 {[%clk 0:00:03]} 44. b4+ {[%clk 0:00:01]}  Kb5 {[%clk 0:00:03]} 45. Kg5 {[%clk 0:00:02]}  Nc4 {[%clk 0:00:04]} 46. Kh6 {[%clk 0:00:02]}  Nxa5 {[%clk 0:00:04]} 47. bxa5 {[%clk 0:00:02]}  Kxa5 {[%clk 0:00:05]} 48. Kg5 {[%clk 0:00:03]}  Kb5 {[%clk 0:00:05]} 49. Kh4 {[%clk 0:00:04]}  Kc5 {[%clk 0:00:05]} 50. Kg5 {[%clk 0:00:05]}  Kd5 {[%clk 0:00:06]} 51. Kh6 {[%clk 0:00:05]}  Ke5 {[%clk 0:00:06]} 52. Kg5 {[%clk 0:00:06]}  Ke4 {[%clk 0:00:06]} 53. Kh6 {[%clk 0:00:07]}  Kf4 {[%clk 0:00:07]} 54. Kxh7 {[%clk 0:00:07]}  g5 {[%clk 0:00:07]} 55. Kg6 {[%clk 0:00:08]}  g4 {[%clk 0:00:08]} 0-1


[Site "https://www.chess.com"]